bitfinex/quotes_ETHUSD_20250803
["timestamp","ask_amount","ask_price","bid_price","bid_amount"]
[1754213076044,0.9205,3467.3,3467.2,4.8448]
[1754213076654,0.9205,3467.3,3467.2,0.4808]
[1754213076843,0.9205,3467.3,3467.2,4.8448]
[1754213077043,0.9205,3467.3,3467.2,4.364]
[1754213077850,0.9205,3467.3,3467.0,0.867143]
[1754213078174,0.9279,3467.2,3467.1,4.364]
[1754213078669,0.9279,3467.2,3467.1,4.366]
[1754213081880,0.4882,3467.2,3467.1,4.366]
[1754213082044,0.001,3467.6,3467.1,4.9041143]
[1754213082246,0.6322,3467.5,3467.2,0.4568]
[1754213082454,0.144,3467.5,3467.2,0.4568]
[1754213082648,0.4882,3467.4,3467.1,4.9041143]
[1754213082949,0.4882,3467.4,3467.2,0.4397]
[1754213084579,0.144,3467.5,3467.2,1.04537143]
[1754213084955,0.6322,3467.5,3467.2,1.50217143]
[1754213085561,0.4882,3467.4,3467.2,1.04537143]
[1754213086977,0.4882,3467.3,3467.2,1.04537143]
[1754213087159,0.4882,3467.3,3467.2,0.4397]
[1754213089469,0.144,3467.5,3467.2,0.4397]
[1754213089665,0.4924,3467.4,3467.3,4.364]
[1754213090247,0.4924,3467.4,3467.3,4.8564]
[1754213090451,0.4934,3467.6,3467.3,5.40232]
[1754213090654,0.6374,3467.6,3467.3,5.40232]
[1754213090860,0.145,3467.6,3467.3,4.90992]
[1754213091061,0.4924,3467.5,3467.4,0.6374]
[1754213101592,0.9329,3467.5,3467.4,1.13774]
[1754213101790,0.9329,3467.5,3467.4,0.6374]
[1754213105721,0.145,3467.6,3467.4,0.6374]
[1754213105879,0.001,3467.6,3467.4,1.0947]
[1754213106095,0.001,3467.6,3467.5,4.363]
[1754213106295,0.001,3467.6,3467.5,4.8203]
[1754213106604,0.001,3467.6,3467.5,5.079898]
[1754213109209,0.001,3467.6,3467.5,4.622598]
[1754213109401,0.4934,3467.6,3467.5,4.622598]
[1754213109932,0.9339,3467.6,3467.5,4.622598]
[1754213110131,0.4934,3467.6,3467.5,4.622598]
[1754213111817,0.001,3467.6,3467.5,4.622598]
[1754213112939,0.4934,3467.6,3467.5,4.622598]
[1754213114598,0.001,3467.6,3467.5,4.622598]
[1754213114841,0.001,3467.6,3467.5,5.079898]
[1754213116537,0.001,3467.6,3467.5,4.622598]
[1754213117742,0.4934,3467.6,3467.5,4.622598]
[1754213129746,0.001,3467.6,3467.5,5.08243722]
[1754213129948,0.001,3467.6,3467.5,5.053598]
[1754213130268,0.001,3467.6,3467.5,4.622598]
[1754213130671,0.5002,3467.6,3467.5,4.622598]
[1754213133366,0.001,3467.6,3467.5,4.622598]
[1754213135169,0.001,3467.6,3467.5,7.622598]
[1754213135546,0.5002,3467.6,3467.5,0.259598]
[1754213135750,0.954,3467.6,3467.5,4.621598]
[1754213136676,0.954,3467.6,3467.5,4.620598]
[1754213137872,0.954,3467.6,3467.5,0.259598]
[1754213138077,0.954,3467.6,3467.5,4.620598]
[1754213138571,0.954,3467.6,3467.5,4.476598]
[1754213142181,0.954,3467.6,3467.5,0.115598]
[1754213143253,0.954,3467.6,3467.5,0.117598]
[1754213145758,0.954,3467.6,3467.5,0.002]
[1754213150947,0.98778508,3467.6,3467.5,0.002]
[1754213151375,0.9658,3467.6,3467.5,0.002]
[1754213153408,0.5002,3467.6,3467.5,0.002]
[1754213153705,0.4862,3467.6,3467.5,0.002]
[1754213156006,0.001,3467.6,3467.5,0.002]
[1754213156706,0.001,3467.6,3467.5,0.4543]
[1754213158924,0.001,3467.6,3467.5,0.9066]
[1754213159132,0.001,3467.6,3467.5,3.02210038]
[1754213159295,0.001,3467.6,3467.5,3.0509396]
[1754213159501,0.001,3467.6,3467.5,3.27620038]
[1754213160534,0.001,3467.6,3467.5,3.16610038]
[1754213164406,0.001,3467.6,3467.5,2.71380038]
[1754213167488,0.001,3467.6,3467.5,7.07480038]
[1754213167489,0.4862,3467.6,3467.5,7.07480038]
[1754213169201,0.4862,3467.6,3467.5,0.5983]
[1754213169415,0.9518,3467.6,3467.5,4.8153]
[1754213169721,0.9518,3467.6,3467.5,0.4543]
[1754213169900,0.9518,3467.6,3467.5,0.002]
[1754213176035,0.4862,3467.6,3467.5,0.002]
[1754213179597,0.9552,3467.6,3467.5,0.002]
[1754213180910,0.4862,3467.6,3467.5,0.002]
[1754213182046,0.001,3467.6,3467.5,0.002]
[1754213183952,0.4991,3467.6,3467.5,0.002]
[1754213185242,0.001,3467.6,3467.5,0.002]
[1754213186740,0.001,3467.6,3467.5,0.4409]
[1754213187341,0.001,3467.6,3467.5,0.002]
[1754213190212,0.4991,3467.6,3467.5,0.002]
[1754213191011,0.4991,3467.6,3467.5,4.362]
[1754213195067,0.001,3467.6,3467.5,4.362]
[1754213195267,0.001,3467.6,3467.5,4.8009]
[1754213195437,0.001,3467.6,3467.5,4.97373922]
[1754213195952,0.001,3467.6,3467.5,5.47283922]
[1754213196870,0.001,3467.6,3467.5,5.444]
[1754213199062,0.001,3467.6,3467.5,5.0051]
[1754213199763,0.001,3467.6,3467.5,5.03393922]
[1754213199940,0.001,3467.6,3467.5,5.47283922]
[1754213200158,0.001,3467.6,3467.5,5.444]
[1754213202183,0.001,3467.6,3467.5,8.444]
[1754213202485,0.001,3467.6,3467.5,8.0051]
[1754213204378,0.001,3467.6,3467.5,7.506]
[1754213204379,0.9681,3467.6,3467.5,7.506]
[1754213204577,0.9681,3467.6,3467.5,0.002]
[1754213204786,0.9681,3467.6,3467.5,4.362]
[1754213206199,0.001,3467.6,3467.5,4.362]
[1754213206347,0.4991,3467.6,3467.5,4.362]
[1754213208014,0.9681,3467.6,3467.5,4.362]
[1754213208412,0.4991,3467.6,3467.5,4.362]
[1754213209471,0.9681,3467.6,3467.5,4.362]
[1754213213918,0.4991,3467.6,3467.5,4.362]
[1754213214631,0.001,3467.6,3467.5,4.362]
[1754213215789,0.001,3467.6,3467.5,5.2968]
[1754213216582,0.001,3467.6,3467.5,4.8236]
[1754213221383,0.4626,3467.6,3467.5,4.8236]
[1754213228539,0.001,3467.6,3467.5,4.8236]
[1754213228742,0.001,3467.6,3467.5,5.2968]
[1754213229440,0.001,3467.6,3467.5,4.8236]
[1754213229639,0.001,3467.6,3467.5,5.2968]
[1754213231053,0.001,3467.6,3467.5,4.8236]
[1754213231627,0.4626,3467.6,3467.5,4.8236]
[1754213235000,0.8975,3467.6,3467.5,4.8236]
[1754213235201,0.8975,3467.6,3467.5,4.8226]
[1754213237504,0.4626,3467.6,3467.5,4.8226]
[1754213260612,0.4626,3467.6,3467.5,0.4636]
[1754213260954,0.4626,3467.6,3467.5,4.8216]
[1754213264675,0.9211,3467.6,3467.5,4.8216]
[1754213264875,0.9211,3467.6,3467.5,17.31370383]
[1754213267691,0.9211,3467.6,3467.5,12.95570383]
[1754213267985,0.9211,3467.6,3467.5,4.8216]
[1754213273895,0.9211,3467.6,3467.5,0.002]
[1754213274792,3.29639637,3467.6,3467.5,0.002]
[1754213274952,1.90543601,3467.6,3467.5,0.002]
[1754213275294,1.4711,3467.6,3467.5,0.002]
[1754213281733,0.001,3467.6,3467.5,0.002]
[1754213281886,0.4884,3467.6,3467.5,0.002]
[1754213282084,0.001,3467.6,3467.5,0.002]
[1754213282799,0.001,3467.6,3467.5,0.5566]
[1754213282981,0.001,3467.6,3467.5,2.44060874]
[1754213283699,0.001,3467.6,3467.5,2.33050874]
[1754213284425,0.001,3467.6,3467.5,2.03000874]
[1754213284623,0.001,3467.6,3467.5,0.002]
[1754213284926,0.4884,3467.6,3467.5,0.002]
[1754213285108,0.001,3467.6,3467.5,0.002]
[1754213285444,0.4884,3467.6,3467.5,0.002]
[1754213291109,0.6324,3467.6,3467.5,0.002]
[1754213291310,0.001,3467.6,3467.5,0.002]
[1754213291522,0.001,3467.6,3467.5,2.23750305]
[1754213291724,0.001,3467.6,3467.5,2.68200305]
[1754213291910,0.001,3467.6,3467.5,2.23750305]
[1754213292110,0.4884,3467.6,3467.5,2.23750305]
[1754213294149,0.9271,3467.6,3467.5,0.002]
[1754213294317,1.0711,3467.6,3467.5,0.002]
[1754213295019,0.6324,3467.6,3467.5,0.002]
[1754213295216,0.001,3467.6,3467.5,0.002]
[1754213295417,0.001,3467.6,3467.5,2.38508714]
[1754213296960,0.001,3467.6,3467.5,1.94058714]
[1754213297162,0.4884,3467.6,3467.5,0.002]
[1754213298119,0.9271,3467.6,3467.5,0.002]
[1754213301766,1.0711,3467.6,3467.5,0.002]
[1754213308660,1.6211,3467.6,3467.5,0.002]
[1754213310872,1.71140186,3467.6,3467.5,0.002]
[1754213311377,1.88254205,3467.6,3467.5,0.002]
[1754213314083,1.88254669,3467.6,3467.5,0.002]
[1754213315838,1.91633177,3467.6,3467.5,0.002]
[1754213316065,6.65033177,3467.6,3467.5,0.002]
[1754213316267,6.61654669,3467.6,3467.5,0.002]
[1754213316877,36.61654669,3467.6,3467.5,0.002]
[1754213317064,36.90564669,3467.6,3467.5,0.002]
[1754213317776,32.5731,3467.0,3466.9,0.002]
[1754213317979,39.7433065,3467.0,3466.9,0.002]
[1754213318272,40.6515065,3467.0,3466.9,0.002]
[1754213325786,40.65154033,3467.0,3466.9,0.002]
[1754213333304,45.61724033,3467.0,3466.9,0.002]
[1754213333604,44.1164874,3467.0,3466.9,0.002]
[1754213333816,43.1085874,3467.0,3466.9,0.002]
[1754213334100,43.1085874,3467.0,3466.9,0.5485]
[1754213334101,4.514,3467.0,3466.9,0.5485]
[1754213334276,4.515,3467.0,3466.9,0.5485]
[1754213334477,4.516,3467.0,3466.9,0.5485]
[1754213335731,0.144,3467.0,3466.9,0.5485]
[1754213335861,4.516,3467.0,3466.9,0.5485]
[1754213341492,4.515,3467.0,3466.9,0.5485]
[1754213342526,4.515,3467.0,3466.9,0.4384]
[1754213343424,0.144,3467.0,3466.9,0.4384]
[1754213343727,4.514,3467.0,3466.9,0.4384]
[1754213344925,4.513,3467.0,3466.9,0.5485]
[1754213345110,4.513,3467.0,3466.9,2.10285306]
[1754213346539,4.513,3467.0,3466.9,0.5485]
[1754213346693,4.513,3467.0,3466.9,0.4384]
[1754213348843,4.513,3467.0,3466.9,0.002]
[1754213349136,4.513,3467.0,3466.9,0.4384]
[1754213350021,0.144,3467.0,3466.9,0.4384]
[1754213350427,0.144,3467.0,3466.9,0.5485]
[1754213350647,0.144,3467.0,3466.9,2.10285306]
[1754213353435,0.144,3467.0,3466.9,0.4384]
[1754213355914,0.144,3467.0,3466.9,0.002]
[1754213356636,0.145,3467.0,3466.9,0.002]
[1754213358077,0.145,3467.0,3466.9,0.4384]
[1754213359105,0.6144,3467.0,3466.9,0.002]
[1754213361142,1.0573,3467.0,3466.9,0.002]
[1754213364215,1.09108508,3467.0,3466.9,0.002]
[1754213364414,1.0573,3467.0,3466.9,0.002]
[1754213369574,0.145,3467.0,3466.9,0.002]
[1754213369745,4.508,3467.0,3466.9,0.4368]
[1754213370167,4.508,3467.0,3466.9,0.002]
[1754213371246,4.9979,3467.0,3466.9,0.002]
[1754213371767,5.4408,3467.0,3466.9,0.002]
[1754213373966,5.4398,3467.0,3466.9,0.002]
[1754213374123,1.0778,3467.0,3466.9,0.002]
[1754213374326,5.4398,3467.0,3466.9,0.002]
[1754213375176,4.9969,3467.0,3466.9,0.002]
[1754213376154,0.6349,3467.0,3466.9,0.002]
[1754213376355,4.9969,3467.0,3466.9,0.002]
[1754213376883,4.507,3467.0,3466.9,0.002]
[1754213377852,0.145,3467.0,3466.9,0.5469]
[1754213378054,0.145,3467.0,3466.9,2.10397756]
[1754213378455,0.001,3467.0,3466.9,2.10397756]
[1754213380639,0.001,3467.0,3466.9,1.55907756]
[1754213380791,0.001,3467.0,3466.9,0.002]
[1754213382369,0.001,3467.0,3466.9,0.4368]
[1754213388798,0.001,3467.0,3466.9,0.002]
[1754213396169,0.4973,3467.0,3466.9,0.002]
[1754213396500,0.001,3467.0,3466.9,0.002]
[1754213396704,0.001,3467.0,3466.9,1.99578306]
[1754213396900,0.001,3467.0,3466.9,2.46738306]
[1754213397206,0.001,3467.0,3466.9,1.99578306]
[1754213398606,0.001,3467.0,3466.9,2.60632727]
[1754213398812,0.001,3467.0,3466.9,5.75032727]
[1754213399010,0.001,3467.0,3466.9,5.72148306]
[1754213399306,0.001,3467.0,3466.9,5.61138306]
[1754213399670,0.001,3467.0,3466.9,9.97138306]
[1754213400371,0.001,3467.0,3466.9,9.49978306]
[1754213401007,0.001,3467.0,3466.9,9.97138306]
[1754213403186,0.001,3467.0,3466.9,6.97138306]
[1754213404033,0.001,3467.0,3466.9,6.49978306]
[1754213404034,0.4973,3467.0,3466.9,6.49978306]
[1754213404191,0.001,3467.0,3466.9,6.49978306]
[1754213405437,0.001,3467.0,3466.9,6.97138306]
[1754213405609,0.001,3467.0,3466.9,7.08148306]
[1754213407191,0.001,3467.0,3466.9,6.97138306]
[1754213408424,0.001,3467.0,3466.9,6.49978306]
[1754213408939,0.4973,3467.0,3466.9,6.99608306]
[1754213409139,0.4973,3467.0,3466.9,4.8583]
[1754213409309,0.4973,3467.0,3466.9,4.362]
[1754213409834,0.9703,3467.0,3466.9,4.362]
[1754213411566,0.001,3467.0,3466.9,4.362]
[1754213412063,0.4973,3467.0,3466.9,4.362]
[1754213412434,0.4973,3467.0,3466.9,5.229111]
[1754213413269,0.001,3467.0,3466.9,5.229111]
[1754213413430,0.001,3467.0,3466.9,7.34192937]
[1754213413636,0.001,3467.0,3466.9,7.31308516]
[1754213414175,0.001,3467.0,3466.9,7.78468516]
[1754213415021,0.001,3467.0,3466.9,7.31308516]
[1754213415227,0.001,3467.0,3466.9,7.78468516]
[1754213418550,0.001,3467.0,3466.9,7.31308516]
[1754213418884,0.001,3467.0,3466.9,7.89478516]
[1754213419060,0.001,3467.0,3466.9,7.78468516]
[1754213419868,0.001,3467.0,3466.9,10.78468516]
[1754213420071,0.001,3467.0,3466.9,10.89478516]
[1754213420683,0.001,3467.0,3466.9,10.78468516]
[1754213420853,0.001,3467.0,3466.9,10.31308516]
[1754213422965,0.4873,3467.0,3466.9,10.31308516]
[1754213423655,0.001,3467.0,3466.9,10.31308516]
[1754213424373,0.4873,3467.0,3466.9,10.31308516]
[1754213426789,0.001,3467.0,3466.9,10.31308516]
[1754213431992,0.9381,3467.0,3466.9,10.31208516]
[1754213432200,0.9381,3467.0,3466.9,5.228111]
[1754213432497,0.9381,3467.0,3466.9,4.361]
[1754213439100,0.9381,3467.0,3466.9,0.002]
[1754213440004,1.0821,3467.0,3466.9,0.002]
[1754213453270,0.001,3467.0,3466.9,0.002]
[1754213453471,0.001,3467.0,3466.9,1.94058756]
[1754213453675,0.4545,3467.0,3466.9,1.94058756]
[1754213453840,0.4545,3467.0,3466.9,0.002]
[1754213455488,0.9032,3467.0,3466.9,0.002]
[1754213466829,0.001,3467.0,3466.9,0.002]
[1754213468722,0.001,3467.0,3466.9,0.44]
[1754213468923,0.001,3467.0,3466.9,0.002]
[1754213469895,0.4545,3467.0,3466.9,0.002]
[1754213470802,0.001,3467.0,3466.9,0.002]
[1754213471049,0.001,3467.0,3466.9,0.4565]
[1754213471661,0.4545,3467.0,3466.9,0.4565]
[1754213475664,0.9032,3467.0,3466.9,0.4565]
[1754213478247,0.9032,3467.0,3466.9,0.002]
[1754213482506,0.001,3467.0,3466.9,0.002]
[1754213482810,0.6179,3467.0,3466.9,0.002]
[1754213485272,1.0627,3467.0,3466.9,0.002]
[1754213486241,0.6179,3467.0,3466.9,0.002]
[1754213489538,0.145,3467.0,3466.9,0.002]
[1754213490051,0.6179,3467.0,3466.9,0.002]
[1754213490345,0.145,3467.0,3466.9,0.4478]
[1754213490645,0.6179,3467.0,3466.9,2.03790764]
[1754213494967,0.6179,3467.0,3466.9,0.4478]
[1754213500096,0.145,3467.0,3466.9,0.4478]
[1754213500295,0.001,3467.0,3466.9,0.8772]
[1754213500946,0.001,3467.0,3466.9,0.90604421]
[1754213501171,0.001,3467.0,3466.9,0.9873]
[1754213501376,0.001,3467.0,3466.9,3.03583306]
[1754213503914,0.001,3467.0,3466.9,7.39483306]
[1754213507221,0.001,3467.0,3466.9,7.28473306]
[1754213507418,0.001,3467.0,3466.9,2.49633306]
[1754213507727,0.4739,3467.0,3466.9,4.8068]
[1754213510257,0.4739,3467.0,3466.9,0.4478]
[1754213510485,0.4739,3467.0,3466.9,4.8068]
[1754213513619,0.4739,3467.0,3466.9,0.4478]
[1754213513819,0.4739,3467.0,3466.9,2.34942306]
[1754213514033,0.4739,3467.0,3466.9,6.70842306]
[1754213514355,0.001,3467.0,3466.9,6.70842306]
[1754213514542,0.001,3467.0,3466.9,7.27872306]
[1754213514730,0.001,3467.0,3466.9,7.16862306]
[1754213515622,0.001,3467.0,3466.9,6.70842306]
[1754213516850,0.4735,3467.0,3466.9,6.70842306]
[1754213518060,0.4735,3467.0,3466.9,6.70742306]
[1754213518774,0.001,3467.0,3466.9,6.70742306]
[1754213520880,0.001,3467.0,3466.9,7.16762306]
[1754213522173,0.001,3467.0,3466.9,7.27772306]
[1754213522346,0.001,3467.0,3466.9,10.42172306]
[1754213523953,0.001,3467.0,3466.9,10.31162306]
[1754213524153,0.001,3467.0,3466.9,10.42172306]
[1754213526899,0.001,3467.0,3466.9,10.31162306]
[1754213527175,0.001,3467.0,3466.9,9.85142306]
[1754213527404,0.4735,3467.0,3466.9,24.84445361]
[1754213530878,0.4735,3467.0,3466.9,25.30465361]
[1754213530879,0.001,3467.0,3466.9,25.30465361]
[1754213532918,0.001,3467.4,3467.0,3.0]
[1754213533205,0.001,3467.4,3467.3,18.13703055]
[1754213533396,0.001,3467.4,3467.3,22.49503055]
[1754213536512,0.4493,3468.2,3467.3,22.81123055]
[1754213536715,0.4725,3467.9,3467.8,14.99303055]
[1754213537025,0.4725,3467.9,3467.8,20.85033361]
[1754213537181,0.4725,3467.9,3467.8,20.99433361]
[1754213538082,0.4725,3467.9,3467.8,21.46683361]
[1754213539797,0.145,3468.6,3467.9,3.0]
[1754213539996,0.459,3468.0,3467.9,3.0]
[1754213540221,0.459,3468.0,3467.9,4.06028441]
[1754213540525,0.459,3468.0,3467.9,4.51928441]
[1754213541532,0.001,3468.0,3467.9,4.51928441]
[1754213541690,0.001,3468.0,3467.9,4.5481203]
[1754213541890,0.001,3468.0,3467.9,4.9800203]
[1754213543039,0.001,3468.0,3467.9,5.0901203]
[1754213543526,0.001,3468.0,3467.9,4.95118441]
[1754213544796,0.001,3468.0,3467.9,4.62938441]
[1754213545131,0.001,3468.4,3467.9,5.0901203]
[1754213545336,0.001,3468.4,3468.3,17.99303055]
[1754213545504,0.001,3468.4,3468.3,22.49403055]
[1754213545910,0.459,3468.4,3468.3,22.49403055]
[1754213546450,0.001,3468.4,3468.3,22.92593055]
[1754213546646,0.001,3468.4,3468.3,23.38493055]
[1754213546841,0.001,3468.4,3468.3,24.88423361]
[1754213547036,0.001,3468.4,3468.3,24.45233361]
[1754213547269,0.459,3468.4,3468.3,24.45233361]
[1754213549679,0.9054,3468.4,3468.3,0.603]
[1754213549852,0.9054,3468.4,3468.3,4.959]
[1754213553049,0.9054,3468.4,3468.3,0.603]
[1754213553254,0.9054,3468.4,3468.3,4.959]
[1754213557815,0.9054,3468.4,3467.4,4.24]
[1754213557816,0.9054,3468.4,3467.6,0.144]
[1754213557964,0.9054,3468.4,3467.3,0.002]
[1754213557965,0.55,3468.2,3467.7,0.366913]
[1754213558166,0.144,3467.5,3467.3,0.002]
[1754213558728,0.9044,3467.4,3467.3,0.002]
[1754213567904,0.458,3467.6,3467.3,0.002]
[1754213568101,0.4464,3467.5,3467.3,0.002]
[1754213568491,0.144,3467.7,3467.3,0.002]
[1754213568836,0.458,3467.6,3467.3,0.002]
[1754213569365,0.144,3467.7,3467.3,0.03084088]
[1754213569558,0.4464,3468.0,3467.4,14.99303055]
[1754213569852,0.6311,3468.0,3467.5,4.38683922]
[1754213570007,0.144,3468.0,3467.5,4.38683922]
[1754213570208,0.4871,3467.9,3467.5,4.8349]
[1754213570409,0.6143,3468.0,3467.5,4.358]
[1754213570654,0.4871,3467.8,3467.5,4.358]
[1754213571144,0.4703,3467.9,3467.5,4.358]
[1754213571446,0.4871,3467.9,3467.5,4.8349]
[1754213571630,0.144,3468.0,3467.5,4.358]
[1754213571812,0.4871,3467.8,3467.5,4.358]
[1754213574141,0.4871,3467.7,3467.5,4.358]
[1754213574641,0.4871,3467.9,3467.5,4.358]
[1754213575022,0.4871,3467.9,3467.5,4.8349]
[1754213575425,0.4871,3467.8,3467.5,4.358]
[1754213578472,0.4871,3467.7,3467.5,4.358]
[1754213578688,0.9574,3467.9,3467.5,4.358]
[1754213578884,0.4703,3467.9,3467.5,4.358]
[1754213579047,0.9574,3467.9,3467.5,4.358]
[1754213579243,0.4871,3467.9,3467.6,0.02883838]
[1754213579450,0.4871,3467.9,3467.7,4.357]
[1754213580476,0.4703,3467.8,3467.7,4.357]
[1754213580679,0.9574,3467.8,3467.7,4.357]
[1754213582583,0.9574,3467.8,3467.4,0.288]
[1754213582881,0.9574,3467.7,3467.5,4.357]
[1754213583081,0.9574,3467.6,3467.5,4.357]
[1754213584679,0.9574,3467.6,3467.3,0.002]
[1754213584879,0.9574,3467.5,3467.4,4.357]
[1754213589215,0.9574,3467.5,3467.3,0.002]
[1754213589378,0.4703,3467.5,3467.3,0.002]
[1754213589583,0.4871,3467.4,3467.3,0.002]
[1754213591012,0.9574,3467.4,3467.3,0.002]
[1754213603066,0.6278,3467.6,3467.3,0.002]
[1754213603371,0.4838,3467.5,3467.3,0.002]
[1754213603854,0.144,3467.6,3467.3,0.002]
[1754213604056,0.9322,3467.4,3467.3,0.002]
[1754213604235,1.0762,3467.4,3467.3,0.002]
[1754213606254,0.6278,3467.4,3467.3,0.002]
[1754213607390,0.144,3467.4,3467.3,0.002]
[1754213607576,0.144,3467.4,3467.3,0.4627]
[1754213608592,0.144,3467.4,3467.3,0.002]
[1754213611494,0.6278,3467.4,3467.3,0.002]
[1754213613664,0.144,3467.4,3467.3,0.002]
[1754213614398,0.6278,3467.4,3467.3,0.002]
[1754213615897,0.144,3467.4,3467.3,0.002]
[1754213616803,0.144,3467.6,3467.3,0.002]
[1754213617166,0.4838,3467.5,3467.3,0.002]
[1754213618706,0.4838,3467.4,3467.3,0.002]
[1754213620300,0.144,3467.6,3467.3,0.002]
[1754213620667,0.145,3467.7,3467.3,0.4627]
[1754213621000,0.145,3467.7,3467.4,0.9155]
[1754213621869,0.001,3467.7,3467.4,0.02884005]
[1754213622197,0.001,3467.7,3467.5,0.9155]
[1754213623018,0.001,3467.7,3467.6,0.48953838]
[1754213623218,0.001,3467.7,3467.6,16.22648969]
[1754213624802,0.001,3467.7,3467.6,15.77168969]
[1754213625912,0.001,3467.7,3467.6,15.31098969]
[1754213635613,0.4734,3467.7,3467.6,15.31098969]
[1754213635814,0.4734,3467.7,3467.6,14.99303055]
[1754213637201,0.001,3467.7,3467.6,14.99303055]
[1754213642935,0.4734,3467.7,3467.5,4.358]
[1754213643130,0.4724,3467.6,3467.5,4.358]
[1754213643519,0.4724,3467.6,3467.4,0.144]
[1754213643743,0.4724,3467.6,3467.5,4.357]
[1754213644546,0.9031,3467.6,3467.5,4.357]
[1754213644745,0.9031,3467.6,3467.3,0.002]
[1754213644918,0.9031,3467.5,3467.4,4.357]
[1754213647357,0.4724,3467.5,3467.4,4.357]
[1754213650859,0.9031,3467.5,3467.4,4.357]
[1754213652138,0.4724,3467.5,3467.4,4.357]
[1754213654676,0.9031,3467.5,3467.4,4.357]
[1754213654830,0.9031,3467.5,3467.4,4.359]
[1754213663832,0.4724,3467.5,3467.4,4.359]
[1754213664542,1.0986,3467.7,3467.4,4.359]
[1754213664870,0.9536,3467.6,3467.4,4.359]
[1754213665030,0.459,3467.6,3467.4,4.359]
[1754213665230,0.4946,3467.5,3467.4,4.359]
[1754213670481,0.145,3467.7,3467.4,4.359]
[1754213670682,0.4946,3467.6,3467.4,4.359]
[1754213670884,0.4946,3467.6,3467.4,16.85268225]
[1754213675137,0.9536,3467.5,3467.4,0.002]
[1754213675434,1.0976,3467.5,3467.4,0.002]
[1754213675639,0.144,3467.5,3467.4,0.002]
[1754213675840,1.0976,3467.5,3467.4,0.002]
[1754213700222,1.64316,3467.5,3467.4,0.002]
[1754213701727,0.144,3467.5,3467.4,0.002]
[1754213701932,1.0689,3467.5,3467.4,0.002]
[1754213704053,0.144,3467.5,3467.4,0.002]
[1754213704822,0.144,3467.5,3467.4,0.9223]
[1754213705224,0.144,3467.5,3467.4,0.4539]
[1754213705422,0.144,3467.5,3467.4,0.002]
[1754213706660,0.6049,3467.5,3467.4,0.002]
[1754213707927,1.14759,3467.5,3467.4,0.002]
[1754213708128,1.61159,3467.5,3467.4,0.002]
[1754213711555,1.14759,3467.5,3467.4,0.002]
[1754213714836,5.50359,3467.5,3467.4,0.002]
[1754213715983,4.5,3467.5,3467.4,0.002]
[1754213717105,0.144,3467.5,3467.4,0.002]
[1754213717449,0.6049,3467.5,3467.4,0.002]
[1754213718499,0.144,3467.5,3467.4,0.002]
[1754213719894,0.6167,3467.5,3467.4,0.002]
[1754213720077,1.0461,3467.5,3467.4,0.002]
[1754213720452,0.6167,3467.5,3467.4,0.002]
[1754213720676,0.144,3467.5,3467.4,0.002]
[1754213722166,0.6167,3467.5,3467.4,0.002]
[1754213722769,1.0461,3467.5,3467.4,0.002]
[1754213725794,0.6167,3467.5,3467.4,0.002]
[1754213725996,0.144,3467.5,3467.4,0.002]
[1754213729496,0.6167,3467.5,3467.4,0.002]
[1754213730078,0.144,3467.5,3467.4,0.002]
[1754213733832,0.6167,3467.5,3467.4,0.002]
[1754213735673,0.001,3467.7,3467.4,0.002]
[1754213735873,0.144,3467.6,3467.4,0.9473]
[1754213736375,0.144,3467.6,3467.4,0.002]
[1754213736721,0.001,3467.7,3467.5,0.9453]
[1754213736929,0.001,3467.7,3467.6,0.9453]
[1754213737119,0.001,3467.7,3467.6,0.97413838]
[1754213737326,0.001,3467.7,3467.6,0.02883838]
[1754213737478,0.001,3467.7,3467.6,1.0893]
[1754213737680,0.001,3467.7,3467.6,2.8478862]
[1754213748576,0.001,3467.7,3467.6,1.9025862]
[1754213751050,0.4658,3467.7,3467.6,1.9025862]
[1754213751918,0.001,3467.7,3467.6,1.9025862]
[1754213752208,0.001,3467.7,3467.6,2.3986862]
[1754213752450,0.001,3467.7,3467.6,2.8676862]
[1754213755140,0.001,3467.7,3467.6,2.3986862]
[1754213755652,0.001,3467.7,3467.6,1.9025862]
[1754213756170,0.4658,3467.7,3467.6,1.9025862]
[1754213756722,0.4658,3467.7,3467.6,0.144]
[1754213759227,0.001,3467.7,3467.6,0.144]
[1754213761057,0.001,3467.7,3467.6,0.146]
[1754213761626,0.4658,3467.7,3467.6,0.146]
[1754213761967,0.9103,3467.7,3467.6,0.002]
[1754213787471,0.4658,3467.7,3467.6,0.002]
[1754213788187,0.001,3467.7,3467.6,0.002]
[1754213791368,0.4889,3467.7,3467.6,0.002]
[1754213791966,1.47038,3467.7,3467.6,0.002]
[1754213794097,1.03148,3467.7,3467.6,0.002]
[1754213794279,0.4889,3467.7,3467.6,0.002]